[Event "Kragero Resort B 2020"]
[Site "Kragero"]
[Date "2020.02.21"]
[Round "5.9"]
[White "Skogli, Paal"]
[Black "Rynning, Rune Kleiven"]
[Result "1/2-1/2"]
[ECO "B56"]
[WhiteElo "1801"]
[BlackElo "1625"]
[Annotator "NA"]
[PlyCount "104"]
[EventDate "2020.02.19"]
[EventType "swiss"]
[EventCountry "NOR"]
[SourceTitle "playchess.com"]
[Source "ChessBase"]
[SourceQuality "1"]
[TimeControl "5400+30"]

1. e4 {[%emt 0:04:21]} c5 {[%emt 0:00:00]} 2. Nf3 {[%emt 0:00:12]} d6 {[%emt 0:00:00]} 3. Bb5+ {[%emt 0:01:05]} Bd7 {[%emt 0:02:05]} 4. Nc3 {[%emt 0:00:08]} Nc6 {[%emt 0:02:05]} 5. d4 {[%emt 0:00:40]} cxd4 {[%emt 0:00:11]} 6. Nxd4 {[%emt 0:00:05]} Nf6 {[%emt 0:02:15]} 7. O-O {[%emt 0:00:53]} e6 {[%emt 0:02:17]} 8. Nxc6 {[%emt 0:03:19]} Bxc6 {[%emt 0:02:58]} 9. Bxc6+ {[%emt 0:00:01]} bxc6 {[%emt 0:00:18]} 10. Qe2 {[%emt 0:00:02]} d5 {[%emt 0:01:39]} 11. Bg5 {[%emt 0:00:34]} Be7 {[%emt 0:00:35]} 12. exd5 {[%emt 0:02:23]} cxd5 {[%emt 0:01:16]} 13. Rad1 {[%emt 0:07:05]} O-O {[%emt 0:01:37]} 14. Nb5 {[%emt 0:02:36]} Qb6 {[%emt 0:05:48]} 15. b3 {[%emt 0:01:22]} Rac8 {[%emt 0:09:39]} 16. c4 {[%emt 0:34:21]} dxc4 {[%emt 0:01:24]} 17. Bxf6 {[%emt 0:01:32]} Bxf6 {[%emt 0:00:13]} 18. bxc4 {[%emt 0:04:21]} a6 {[%emt 0:02:53]} 19. Nd6 {[%emt 0:00:04]} Rc6 {[%emt 0:00:48]} 20. Ne4 {[%emt 0:00:23]} Bd4 {[%emt 0:01:58]} 21. Rb1 {[%emt 0:05:08]} Qc7 {[%emt 0:06:18]} 22. Rb4 {[%emt 0:03:17]} Rc8 {[%emt 0:03:59]} 23. Rfb1 {[%emt 0:03:49]} Rb6 {[%emt 0:08:11]} 24. Rxb6 {[%emt 0:00:23]} Bxb6 {[%emt 0:00:47]} 25. c5 {[%emt 0:00:57]} Bxc5 {[%emt 0:00:10]} 26. Nxc5 {[%emt 0:00:01]} Qxc5 {[%emt 0:00:13]} 27. Qxa6 {[%emt 0:00:04]} Qc2 {[%emt 0:03:31]} 28. Re1 {[%emt 0:04:24]} h6 {[%emt 0:04:21]} 29. g3 {[%emt 0:00:13]} Qc3 {[%emt 0:02:27]} 30. Rd1 {[%emt 0:05:56]} Qc2 {[%emt 0:02:16]} 31. Re1 {[%emt 0:01:09]} Rd8 {[%emt 0:01:39]} 32. a4 {[%emt 0:01:01]} Rd2 {[%emt 0:03:43]} 33. Qa8+ {[%emt 0:00:15]} Kh7 {[%emt 0:00:12]} 34. Qf3 {[%emt 0:00:35]} Kg8 {[%emt 0:03:11]} 35. Qa8+ {[%emt 0:01:41]} Kh7 {[%emt 0:00:08]} 36. Qa7 {[%emt 0:00:12]} Rd1 {[%emt 0:02:54]} 37. Rxd1 {[%emt 0:00:31]} Qxd1+ {[%emt 0:00:09]} 38. Kg2 {[%emt 0:00:03]} Qd5+ {[%emt 0:00:17]} 39. f3 {[%emt 0:02:56]} Qa2+ {[%emt 0:02:20]} 40. Kh3 {[%emt 0:02:58]} e5 {[%emt 0:00:26]} 41. Qd7 {[%emt 0:00:34]} f6 {[%emt 0:01:35]} 42. Qf5+ {[%emt 0:00:51]} Kg8 {[%emt 0:00:21]} 43. Qe4 {[%emt 0:00:20]} Qe6+ {[%emt 0:03:09]} 44. Kg2 {[%emt 0:00:15]} Qa2+ {[%emt 0:00:12]} 45. Kh3 {[%emt 0:00:07]} Qe6+ {[%emt 0:00:10]} 46. g4 {[%emt 0:00:33]} h5 {[%emt 0:01:09]} 47. Kg3 {[%emt 0:00:39]} hxg4 {[%emt 0:00:27]} 48. fxg4 {[%emt 0:00:22]} Qb3+ {[%emt 0:01:10]} 49. Kf2 {[%emt 0:00:26]} Qa2+ {[%emt 0:01:19]} 50. Kg3 {[%emt 0:00:15]} Qb3+ {[%emt 0:00:20]} 51. Kf2 {[%emt 0:00:48]} Qa2+ {[%emt 0:00:16]} 52. Kg3 {[%emt 0:01:13]} Qb3+ {[%emt 0:00:41]} 1/2-1/2

[Event "Kragero Resort B 2020"]
[Site "Kragero"]
[Date "2020.02.21"]
[Round "5.10"]
[White "Sejersted, Adrian"]
[Black "Ostensen, Nicolai Maxime"]
[Result "1-0"]
[ECO "D00"]
[WhiteElo "1788"]
[BlackElo "1658"]
[Annotator "NA"]
[PlyCount "161"]
[EventDate "2020.02.19"]
[EventType "swiss"]
[EventCountry "NOR"]
[SourceTitle "playchess.com"]
[Source "ChessBase"]
[SourceQuality "1"]
[TimeControl "5400+30"]

1. d4 {[%emt 0:01:18]} d5 {[%emt 0:01:03]} 2. Nc3 {[%emt 0:00:05]} e6 {[%emt 0:00:21]} 3. Bf4 {[%emt 0:00:11]} a6 {[%emt 0:00:18]} 4. e3 {[%emt 0:00:09]} c5 {[%emt 0:00:23]} 5. Bd3 {[%emt 0:01:34]} Nc6 {[%emt 0:00:19]} 6. Nf3 {[%emt 0:00:23]} Nf6 {[%emt 0:01:59]} 7. O-O {[%emt 0:00:50]} Bd7 {[%emt 0:01:38]} 8. Re1 {[%emt 0:03:27]} c4 {[%emt 0:01:16]} 9. Bf1 {[%emt 0:00:53]} Bb4 {[%emt 0:00:16]} 10. Bg5 {[%emt 0:05:57]} Qa5 {[%emt 0:02:35]} 11. Bxf6 {[%emt 0:03:11]} gxf6 {[%emt 0:00:19]} 12. Qd2 {[%emt 0:00:16]} f5 {[%emt 0:01:38]} 13. a3 {[%emt 0:01:48]} Bd6 {[%emt 0:00:18]} 14. b4 {[%emt 0:02:31]} cxb3 {[%emt 0:05:27]} 15. cxb3 {[%emt 0:00:16]} b5 {[%emt 0:00:55]} 16. b4 {[%emt 0:04:53]} Qb6 {[%emt 0:02:21]} 17. Ne2 {[%emt 0:04:20]} a5 {[%emt 0:01:17]} 18. Nc3 {[%emt 0:05:42]} Nd8 {[%emt 0:04:49]} 19. bxa5 {[%emt 0:02:59]} Rxa5 {[%emt 0:00:17]} 20. Qb2 {[%emt 0:01:06]} b4 {[%emt 0:08:08]} 21. Reb1 {[%emt 0:06:14]} Nc6 {[%emt 0:01:49]} 22. a4 {[%emt 0:05:46]} Na7 {[%emt 0:03:35]} 23. Ne5 {[%emt 0:02:04]} Qc7 {[%emt 0:01:15]} 24. Nb5 {[%emt 0:04:46]} Bxb5 {[%emt 0:08:53]} 25. axb5 {[%emt 0:01:49]} Nxb5 {[%emt 0:10:03]} 26. Rxa5 {[%emt 0:02:57]} Qxa5 {[%emt 0:00:09]} 27. Nc6 {[%emt 0:00:03]} Qb6 {[%emt 0:00:06]} 28. Nxb4 {[%emt 0:01:25]} Na7 {[%emt 0:00:49]} 29. Qc2 {[%emt 0:04:12]} Qc7 {[%emt 0:11:10]} 30. Qxc7 {[%emt 0:03:21]} Bxc7 {[%emt 0:00:11]} 31. Nxd5 {[%emt 0:00:31]} Bd8 {[%emt 0:02:22]} 32. Nf4 {[%emt 0:02:34]} O-O {[%emt 0:00:58]} 33. g3 {[%emt 0:04:50]} Nc8 {[%emt 0:00:34]} 34. Be2 {[%emt 0:00:47]} Ne7 {[%emt 0:00:33]} 35. Rb7 {[%emt 0:00:32]} Ng6 {[%emt 0:00:21]} 36. Kg2 {[%emt 0:00:55]} Nxf4+ {[%emt 0:00:08]} 37. gxf4 {[%emt 0:01:30]} Kg7 {[%emt 0:00:11]} 38. d5 {[%emt 0:01:54]} exd5 {[%emt 0:00:12]} 39. Rd7 {[%emt 0:00:49]} Bh4 {[%emt 0:04:13]} 40. Rxd5 {[%emt 0:00:16]} Rb8 {[%emt 0:02:45]} 41. Rxf5 {[%emt 0:02:38]} Rb2 {[%emt 0:00:04]} 42. Kf3 {[%emt 0:01:53]} h6 {[%emt 0:03:38]} 43. Rd5 {[%emt 0:01:48]} Ra2 {[%emt 0:01:20]} 44. Rd1 {[%emt 0:00:14]} Rb2 {[%emt 0:01:30]} 45. Rg1+ {[%emt 0:00:03]} Kf8 {[%emt 0:00:30]} 46. Rg4 {[%emt 0:02:05]} Bf6 {[%emt 0:00:54]} 47. Bd3 {[%emt 0:00:41]} Bg7 {[%emt 0:00:42]} 48. Rh4 {[%emt 0:01:03]} Rd2 {[%emt 0:00:49]} 49. Be4 {[%emt 0:00:21]} Ke7 {[%emt 0:00:49]} 50. Rh5 {[%emt 0:00:06]} Rb2 {[%emt 0:00:27]} 51. Rf5 {[%emt 0:01:32]} Bf6 {[%emt 0:00:14]} 52. Rh5 {[%emt 0:02:02]} Bg7 {[%emt 0:00:15]} 53. h3 {[%emt 0:00:15]} Ra2 {[%emt 0:01:05]} 54. Bd5 {[%emt 0:00:42]} Rc2 {[%emt 0:01:05]} 55. Kg3 {[%emt 0:01:16]} Re2 {[%emt 0:00:39]} 56. e4 {[%emt 0:01:49]} Rd2 {[%emt 0:00:34]} 57. Rf5 {[%emt 0:00:35]} f6 {[%emt 0:01:10]} 58. Rh5 {[%emt 0:00:56]} Rc2 {[%emt 0:00:30]} 59. f5 {[%emt 0:02:47]} Rd2 {[%emt 0:01:06]} 60. Rh4 {[%emt 0:00:20]} Rd3+ {[%emt 0:01:51]} 61. Kg2 {[%emt 0:00:40]} Rc3 {[%emt 0:01:16]} 62. Rg4 {[%emt 0:00:12]} Kf8 {[%emt 0:00:27]} 63. f3 {[%emt 0:01:16]} Rc2+ {[%emt 0:00:06]} 64. Kg3 {[%emt 0:00:14]} Rc1 {[%emt 0:00:08]} 65. Kh4 {[%emt 0:00:14]} Rh1 {[%emt 0:00:39]} 66. Rg3 {[%emt 0:00:14]} Re1 {[%emt 0:00:59]} 67. Kh5 {[%emt 0:00:07]} Rc1 {[%emt 0:00:53]} 68. Kg6 {[%emt 0:00:20]} Rc3 {[%emt 0:00:41]} 69. Kh7 {[%emt 0:00:21]} Rc7 {[%emt 0:00:05]} 70. Rg2 {[%emt 0:01:00]} h5 {[%emt 0:00:40]} 71. h4 {[%emt 0:01:01]} Rd7 {[%emt 0:00:40]} 72. Kg6 {[%emt 0:00:15]} Bh8 {[%emt 0:00:22]} 73. Kxh5 {[%emt 0:00:29]} Rh7+ {[%emt 0:00:15]} 74. Kg4 {[%emt 0:00:06]} Kg7 {[%emt 0:00:17]} 75. Kh3+ {[%emt 0:01:22]} Kh6 {[%emt 0:00:22]} 76. Rb2 {[%emt 0:01:17]} Rg7 {[%emt 0:00:25]} 77. Rb6 {[%emt 0:01:06]} Rg1 {[%emt 0:00:23]} 78. e5 {[%emt 0:01:27]} Rd1 {[%emt 0:00:29]} 79. Be4 {[%emt 0:00:10]} Rh1+ {[%emt 0:00:08]} 80. Kg3 {[%emt 0:00:22]} Kg7 {[%emt 0:00:52]} 81. e6 {[%emt 0:00:12]} 1-0

[Event "Kragero Resort B 2020"]
[Site "Kragero"]
[Date "2020.02.21"]
[Round "5.11"]
[White "Opseth, Oliver"]
[Black "Omtvedt, Per"]
[Result "1-0"]
[ECO "B47"]
[WhiteElo "1894"]
[BlackElo "1894"]
[Annotator "NA"]
[PlyCount "49"]
[EventDate "2020.02.19"]
[EventType "swiss"]
[EventCountry "NOR"]
[SourceTitle "playchess.com"]
[Source "ChessBase"]
[SourceQuality "1"]
[TimeControl "5400+30"]

1. e4 {[%emt 0:00:00]} c5 {[%emt 0:00:00]} 2. Nf3 {[%emt 0:00:12]} e6 {[%emt 0:03:28]} 3. d4 {[%emt 0:03:29]} cxd4 {[%emt 0:00:14]} 4. Nxd4 {[%emt 0:00:06]} Nc6 {[%emt 0:00:11]} 5. Nc3 {[%emt 0:02:48]} Qc7 {[%emt 0:00:10]} 6. Ndb5 {[%emt 0:06:43]} Qb8 {[%emt 0:00:24]} 7. Be2 {[%emt 0:01:59] 7.f4 gains popularity. B47: Sicilian: Taimanov: 5 Nc3 Qc7 6 f4, 6 g3 and 6 Be2.} a6 {[%emt 0:00:33]} 8. Nd4 {[%emt 0:00:52]} Nf6 {[%emt 0:00:32]} 9. O-O {[%emt 0:00:51]} Bc5 {[%emt 0:04:13]} 10. Be3 {[%emt 0:01:21] [#]} Qd6 $146 {[%emt 0:11:07]} ({Predecessor:} 10... Ba7 11. Nxc6 bxc6 12. Bxa7 Rxa7 13. Qd4 d5 14. e5 Nd7 15. f4 c5 16. Qd3 Qxb2 {1-0 (26) Peschleyevsky,V-Medved,V USSR 1990}) 11. Nxc6 $1 {[%emt 0:04:49]} Qxc6 {[%emt 0:05:36]} 12. Bf3 {[%emt 0:08:33]} Bxe3 {[%emt 0:07:04]} 13. fxe3 {[%emt 0:00:19]} e5 {[%emt 0:01:08]} 14. Nd5 {[%emt 0:00:26]} Nxd5 {[%emt 0:00:16]} 15. exd5 {[%emt 0:03:30]} Qc5 {[%emt 0:00:48]} 16. d6 {[%emt 0:02:38]} Qxe3+ {[%emt 0:00:09]} 17. Kh1 {[%emt 0:00:03]} O-O {[%emt 0:00:53]} 18. Bd5 {[%emt 0:03:56]} Qh6 {[%emt 0:02:11]} 19. Rxf7 {[%emt 0:11:44]} Rxf7 {[%emt 0:03:43]} 20. Qf3 {[%emt 0:00:10]} Qf6 {[%emt 0:00:54]} 21. Rf1 {[%emt 0:00:10]} Kh8 {[%emt 0:07:53]} 22. Bxf7 {[%emt 0:01:44]} Qxd6 {[%emt 0:02:48]} 23. Bd5 {[%emt 0:10:56]} Qf6 {[%emt 0:02:13]} 24. Qe2 {[%emt 0:01:19]} Qe7 {[%emt 0:00:14] [#]} 25. Qxe5 {[%emt 0:00:12] Back Rank} 1-0

[Event "Kragero Resort B 2020"]
[Site "Kragero"]
[Date "2020.02.21"]
[Round "5.12"]
[White "Shehzad, Alisha"]
[Black "Digernes, Mikael"]
[Result "1-0"]
[ECO "B13"]
[WhiteElo "1705"]
[BlackElo "1748"]
[Annotator "NA"]
[PlyCount "83"]
[EventDate "2020.02.19"]
[EventType "swiss"]
[EventCountry "NOR"]
[SourceTitle "playchess.com"]
[Source "ChessBase"]
[SourceQuality "1"]
[TimeControl "5400+30"]

1. e4 {[%emt 0:00:00]} c6 {[%emt 0:00:00]} 2. d4 {[%emt 0:00:00]} d5 {[%emt 0:00:00]} 3. exd5 {[%emt 0:00:07]} cxd5 {[%emt 0:00:15]} 4. Bd3 {[%emt 0:01:04]} Nc6 {[%emt 0:00:30]} 5. c3 {[%emt 0:00:17]} Qc7 {[%emt 0:00:13]} 6. Nf3 {[%emt 0:01:30]} Bg4 {[%emt 0:00:42]} 7. O-O {[%emt 0:01:18]} e6 {[%emt 0:03:06]} 8. Be3 {[%emt 0:06:41]} Nf6 {[%emt 0:03:02]} 9. Nbd2 {[%emt 0:02:16]} Bd6 {[%emt 0:02:27]} 10. h3 {[%emt 0:03:44]} h5 {[%emt 0:13:00]} 11. Qc2 {[%emt 0:17:47]} O-O-O {[%emt 0:10:18]} 12. b4 {[%emt 0:08:35]} Rdg8 {[%emt 0:08:23]} 13. a3 {[%emt 0:01:30]} Bf4 {[%emt 0:05:01]} 14. Bxf4 {[%emt 0:02:33]} Qxf4 {[%emt 0:00:24]} 15. c4 {[%emt 0:01:02]} Kb8 {[%emt 0:08:25]} 16. b5 {[%emt 0:07:49]} Nxd4 {[%emt 0:06:05]} 17. Nxd4 {[%emt 0:00:15]} Bxh3 {[%emt 0:06:33]} 18. gxh3 {[%emt 0:05:12]} Qxd4 {[%emt 0:00:48]} 19. Nf3 {[%emt 0:04:13]} Qf4 {[%emt 0:01:11]} 20. Qe2 {[%emt 0:01:12]} Ne4 {[%emt 0:05:46]} 21. Bxe4 {[%emt 0:01:28]} dxe4 {[%emt 0:00:15]} 22. Nd2 {[%emt 0:01:30]} f5 {[%emt 0:04:46]} 23. Qe3 {[%emt 0:01:08]} Qe5 {[%emt 0:01:38]} 24. Rfd1 {[%emt 0:03:02]} g5 {[%emt 0:01:02]} 25. Nb3 {[%emt 0:02:32]} Rd8 {[%emt 0:03:28]} 26. Rd4 {[%emt 0:02:48]} f4 {[%emt 0:05:40]} 27. Qxe4 {[%emt 0:01:23]} Qxe4 {[%emt 0:00:23]} 28. Rxe4 {[%emt 0:00:09]} b6 {[%emt 0:00:22]} 29. Nd4 {[%emt 0:02:25]} Kb7 {[%emt 0:02:01]} 30. Nxe6 {[%emt 0:02:20]} Rdg8 {[%emt 0:01:27]} 31. Kh2 {[%emt 0:01:41]} f3 {[%emt 0:00:42]} 32. Rd1 {[%emt 0:01:11]} Rh7 {[%emt 0:00:14]} 33. Nd8+ {[%emt 0:00:57]} Ka8 {[%emt 0:01:32]} 34. Nc6 {[%emt 0:00:24]} g4 {[%emt 0:00:19]} 35. h4 {[%emt 0:00:18]} g3+ {[%emt 0:01:18]} 36. fxg3 {[%emt 0:00:17]} Rhg7 {[%emt 0:00:30]} 37. Re7 {[%emt 0:05:28]} Rxe7 {[%emt 0:00:53]} 38. Nxe7 {[%emt 0:00:09]} Rf8 {[%emt 0:00:22]} 39. Nc6 {[%emt 0:01:06]} Rf7 {[%emt 0:01:51]} 40. Rf1 {[%emt 0:00:34]} a6 {[%emt 0:02:28]} 41. a4 {[%emt 0:02:48]} Kb7 {[%emt 0:00:26]} 42. Nd8+ {[%emt 0:00:07]} 1-0

[Event "Kragero Resort B 2020"]
[Site "Kragero"]
[Date "2020.02.21"]
[Round "6.1"]
[White "Aasen, Kjetil Myrlid"]
[Black "Leonhardsen, Vebjorn Maanum"]
[Result "0-1"]
[ECO "B17"]
[WhiteElo "1892"]
[BlackElo "1845"]
[Annotator "NA RC"]
[PlyCount "114"]
[EventDate "2020.02.19"]
[EventType "swiss"]
[EventCountry "NOR"]
[SourceTitle "playchess.com"]
[Source "ChessBase"]
[SourceQuality "1"]
[TimeControl "5400+30"]

1. e4 {[%emt 0:00:00]} c6 {[%emt 0:00:00]} 2. Nf3 {[%emt 0:00:05]} d5 {[%emt 0:00:00]} 3. Nc3 {[%emt 0:00:42]} dxe4 {[%emt 0:05:14]} 4. Nxe4 {[%emt 0:00:11]} Nf6 {[%emt 0:00:26]} 5. Qe2 {[%emt 0:00:55]} Nxe4 {[%emt 0:01:19]} 6. Qxe4 {[%emt 0:00:11]} Nd7 {[%emt 0:00:23]} 7. Bc4 {[%emt 0:08:54]} e6 {[%emt 0:04:58]} 8. O-O {[%emt 0:03:15]} Nf6 {[%emt 0:00:24]} 9. Qe2 {[%emt 0:00:04]} Be7 {[%emt 0:00:28]} 10. c3 {[%emt 0:00:42]} O-O {[%emt 0:00:26]} 11. d4 {[%emt 0:00:30]} b5 {[%emt 0:02:47] B17: Caro-Kann: Modern Line (4...Nd7).} 12. Bd3 {[%emt 0:04:26]} Bb7 {[%emt 0:00:13] [#]} 13. Rd1 $146 {[%emt 0:02:29]} ({Predecessor:} 13. Re1 a6 14. a4 Qd5 15. Bg5 Rfd8 16. b4 h6 17. Bxf6 Bxf6 18. Be4 Qd6 19. Qe3 a5 20. axb5 axb4 21. cxb4 {½-½ (30) Tseshkovsky,V (2455)-Meduna,E (2425) Trnava 1986}) 13... Qc7 {[%emt 0:01:02]} 14. Ng5 {[%emt 0:04:37]} a6 {[%emt 0:04:08]} 15. Ne4 {[%emt 0:04:59]} Nxe4 {[%emt 0:00:45]} 16. Qxe4 {[%emt 0:00:52]} g6 {[%emt 0:00:33]} 17. Bh6 {[%emt 0:01:54]} c5 {[%emt 0:07:18]} 18. Qe5 {[%emt 0:18:45]} Qxe5 {[%emt 0:00:22]} 19. dxe5 {[%emt 0:00:02]} Rfd8 {[%emt 0:00:42]} 20. Be2 {[%emt 0:09:18]} Rxd1+ {[%emt 0:05:09]} 21. Rxd1 {[%emt 0:00:23]} Rd8 {[%emt 0:00:07]} 22. Rxd8+ {[%emt 0:04:48]} Bxd8 {[%emt 0:00:12]} 23. Be3 {[%emt 0:01:28]} Be7 {[%emt 0:00:16]} 24. f4 {[%emt 0:02:56]} h5 {[%emt 0:01:03]} 25. Kf2 {[%emt 0:00:27]} Kf8 {[%emt 0:00:37]} 26. Bf3 {[%emt 0:02:05]} Bxf3 {[%emt 0:01:32]} 27. Kxf3 {[%emt 0:00:01]} Ke8 {[%emt 0:01:11]} 28. Ke4 {[%emt 0:03:23]} Kd7 {[%emt 0:01:16]} 29. h3 {[%emt 0:01:30]} Kc6 {[%emt 0:00:37]} 30. g4 {[%emt 0:02:44]} hxg4 {[%emt 0:00:24]} 31. hxg4 {[%emt 0:00:02]} Bd8 {[%emt 0:04:05]} 32. b3 {[%emt 0:05:26]} Be7 {[%emt 0:01:26]} 33. c4 {[%emt 0:02:06]} bxc4 {[%emt 0:09:25]} 34. bxc4 {[%emt 0:00:33]} Bf8 {[%emt 0:05:34]} 35. f5 {[%emt 0:01:44]} exf5+ {[%emt 0:04:07]} 36. gxf5 {[%emt 0:00:36]} gxf5+ {[%emt 0:03:27]} 37. Kxf5 {[%emt 0:00:01]} Bg7 {[%emt 0:01:01]} 38. Bf2 {[%emt 0:04:55]} Kb6 {[%emt 0:03:33]} 39. Be1 {[%emt 0:02:46]} Bh8 {[%emt 0:01:13]} 40. a4 {[%emt 0:03:05]} Bg7 {[%emt 0:00:26]} 41. Bd2 {[%emt 0:01:36]} Kc6 {[%emt 0:05:27]} 42. a5 {[%emt 0:01:07]} Kd7 {[%emt 0:02:04]} 43. Bg5 {[%emt 0:00:49]} Kc7 {[%emt 0:09:49]} 44. Be7 {[%emt 0:02:54]} Kc6 {[%emt 0:09:23]} (44... Kb7 $11 {remains equal.}) 45. Bd6 {[%emt 0:00:02]} Kd7 {[%emt 0:03:22]} 46. Bxc5 {[%emt 0:00:29]} Kc7 $11 {[%emt 0:00:24]} 47. Be7 {[%emt 0:01:26]} Kc6 {[%emt 0:00:14]} 48. Bb4 {[%emt 0:00:51]} Kc7 {[%emt 0:00:29]} 49. Ke4 {[%emt 0:00:43]} Kc6 {[%emt 0:00:13]} 50. Bc3 {[%emt 0:00:34]} Bh6 {[%emt 0:01:44]} 51. Bd4 {[%emt 0:00:24]} Bf8 {[%emt 0:01:08]} 52. Kf5 {[%emt 0:00:30]} Bg7 {[%emt 0:02:43]} 53. Be3 {[%emt 0:00:31]} Kd7 {[%emt 0:00:14]} 54. Bd4 {[%emt 0:00:40]} Kc6 {[%emt 0:00:12]} 55. Ke4 {[%emt 0:00:15]} Bh6 {[%emt 0:00:22]} 56. Be3 {[%emt 0:00:36]} Bg7 {[%emt 0:01:21]} 57. Bg5 {[%emt 0:00:40]} Kc5 {[%emt 0:00:17]} 0-1

[Event "Kragero Resort B 2020"]
[Site "Kragero"]
[Date "2020.02.21"]
[Round "6.2"]
[White "Seo, Jung Hyun"]
[Black "Bernstein, Jonas August"]
[Result "1/2-1/2"]
[ECO "C10"]
[WhiteElo "1816"]
[BlackElo "1798"]
[Annotator "NA RC"]
[PlyCount "83"]
[EventDate "2020.02.19"]
[EventType "swiss"]
[EventCountry "NOR"]
[SourceTitle "playchess.com"]
[Source "ChessBase"]
[SourceQuality "1"]
[TimeControl "5400+30"]

1. e4 {[%emt 0:00:00]} e6 {[%emt 0:04:48]} 2. d4 {[%emt 0:00:00]} d5 {[%emt 0:00:05]} 3. Nd2 {[%emt 0:00:00]} dxe4 {[%emt 0:02:16]} 4. Nxe4 {[%emt 0:00:00]} Nd7 {[%emt 0:00:09]} 5. Nf3 {[%emt 0:00:00]} Ngf6 {[%emt 0:00:05]} 6. Nxf6+ {[%emt 0:00:00]} Nxf6 {[%emt 0:00:04]} 7. g3 {[%emt 0:00:13]} Be7 {[%emt 0:01:19]} 8. Bg2 {[%emt 0:00:06]} c5 {[%emt 0:00:33]} 9. O-O {[%emt 0:01:00]} O-O {[%emt 0:00:28]} 10. c3 {[%emt 0:00:29]} Qb6 {[%emt 0:02:09] C10: French with 3 Nc3: Unusual Black 3rd moves and 3...dxe4.} 11. Qb3 {[%emt 0:01:50] [#]} Qa6 $146 {[%emt 0:16:41]} ({Predecessor:} 11... Qxb3 12. axb3 cxd4 13. Nxd4 Nd5 14. Nf5 Bc5 15. b4 Bb6 16. Bxd5 exf5 17. Bf4 h6 18. h4 {½-½ (53) Hebbinghaus,H (2297)-Noack,R (2118) Bargteheide 2008}) 12. Bf4 {[%emt 0:16:57]} Nd5 {[%emt 0:01:55]} 13. Bd2 {[%emt 0:10:25]} Bd7 {[%emt 0:03:28]} 14. c4 {[%emt 0:16:24]} Ba4 {[%emt 0:05:36]} 15. Qd3 {[%emt 0:01:04]} Nf6 {[%emt 0:12:44]} 16. b3 {[%emt 0:15:53]} Bc6 {[%emt 0:02:51]} 17. Rfe1 {[%emt 0:00:32]} Rfd8 {[%emt 0:02:56]} 18. d5 {[%emt 0:08:17]} Bxd5 {[%emt 0:02:30]} 19. Qc2 {[%emt 0:08:24]} Bc6 {[%emt 0:03:18]} 20. Bc3 {[%emt 0:00:10]} h6 {[%emt 0:04:03]} 21. h3 {[%emt 0:01:51]} b5 {[%emt 0:01:55]} 22. Re3 {[%emt 0:06:03]} bxc4 {[%emt 0:03:08]} 23. bxc4 {[%emt 0:00:26]} Rab8 {[%emt 0:04:36]} 24. Rae1 {[%emt 0:00:44]} Qxc4 {[%emt 0:03:58]} 25. g4 {[%emt 0:05:23]} Nd5 {[%emt 0:02:44]} 26. Ne5 {[%emt 0:02:32]} Nxe3 {[%emt 0:01:46]} 27. fxe3 {[%emt 0:00:22]} Qa4 {[%emt 0:01:02]} 28. Qf2 {[%emt 0:00:06]} Be8 {[%emt 0:04:48]} 29. Bc6 {[%emt 0:00:07]} Bh4 {[%emt 0:10:59]} 30. Qf3 $2 {[%emt 0:02:47]} (30. Qf1 Qc2 31. Bxe8 Rxe8 32. Rc1) 30... Qc2 {[%emt 0:00:44]} 31. Bxe8 {[%emt 0:00:14]} Qf2+ {[%emt 0:00:42]} 32. Qxf2 {[%emt 0:00:11]} Bxf2+ {[%emt 0:00:02]} 33. Kxf2 {[%emt 0:00:02]} Rxe8 {[%emt 0:00:05]} 34. Rd1 {[%emt 0:00:32]} Red8 {[%emt 0:01:21]} 35. Rf1 {[%emt 0:00:34]} Rb7 {[%emt 0:00:43]} 36. Ke2 {[%emt 0:00:38]} f6 {[%emt 0:00:32]} 37. Nd3 {[%emt 0:01:18]} c4 {[%emt 0:00:34]} 38. Nb2 {[%emt 0:00:10]} Rc8 {[%emt 0:00:37]} 39. Rf4 $11 {[%emt 0:00:26]} e5 {[%emt 0:00:22]} 40. Re4 {[%emt 0:00:50]} (40. Rf2 $11 {remains equal.}) 40... a5 {[%emt 0:00:44]} (40... Rb6 $17 41. a3 Rbc6) 41. Nxc4 {[%emt 0:00:20]} Rbc7 {[%emt 0:00:18]} 42. Kd3 {[%emt 0:01:28]} 1/2-1/2

[Event "Kragero Resort B 2020"]
[Site "Kragero"]
[Date "2020.02.21"]
[Round "6.3"]
[White "Halvorsen, Benjamin"]
[Black "Solaas, Timian Martinius Man"]
[Result "1-0"]
[ECO "B50"]
[WhiteElo "1861"]
[BlackElo "1741"]
[Annotator "NA"]
[PlyCount "71"]
[EventDate "2020.02.19"]
[EventType "swiss"]
[EventCountry "NOR"]
[SourceTitle "playchess.com"]
[Source "ChessBase"]
[SourceQuality "1"]
[TimeControl "5400+30"]

1. e4 {[%emt 0:00:00]} c5 {[%emt 0:00:00]} 2. Nf3 {[%emt 0:00:00]} g6 {[%emt 0:00:00]} 3. g3 {[%emt 0:00:43]} Nc6 {[%emt 0:00:03]} 4. Bg2 {[%emt 0:00:11]} Bg7 {[%emt 0:00:16]} 5. c3 {[%emt 0:00:16]} e5 {[%emt 0:02:46]} 6. O-O {[%emt 0:00:06]} d6 {[%emt 0:00:18]} 7. Na3 {[%emt 0:03:16]} Nge7 {[%emt 0:04:43]} 8. Nc2 {[%emt 0:03:22]} O-O {[%emt 0:00:38]} 9. d4 {[%emt 0:06:02]} Qc7 {[%emt 0:03:04]} 10. dxc5 {[%emt 0:06:05]} dxc5 {[%emt 0:02:33]} 11. Qe2 {[%emt 0:00:55]} h6 {[%emt 0:07:45]} 12. Be3 {[%emt 0:09:23]} b6 {[%emt 0:03:34]} 13. Nd2 {[%emt 0:07:20]} Be6 {[%emt 0:05:39]} 14. f4 {[%emt 0:02:23]} Rad8 {[%emt 0:01:26]} 15. f5 {[%emt 0:01:44]} gxf5 {[%emt 0:09:52]} 16. Qh5 {[%emt 0:01:12]} fxe4 {[%emt 0:13:23]} 17. Bxh6 {[%emt 0:14:03]} f6 {[%emt 0:13:43]} 18. Nxe4 {[%emt 0:04:43]} Nf5 {[%emt 0:03:32]} 19. Bxg7 {[%emt 0:04:49]} Nxg7 {[%emt 0:02:38]} 20. Qg6 {[%emt 0:00:48]} Ne7 {[%emt 0:07:34]} 21. Nxf6+ {[%emt 0:01:02]} Rxf6 {[%emt 0:00:02]} 22. Qxf6 {[%emt 0:00:06]} Bd5 {[%emt 0:01:30]} 23. Bxd5+ {[%emt 0:00:57]} Nxd5 {[%emt 0:00:21]} 24. Qg5 {[%emt 0:00:55]} c4 {[%emt 0:01:05]} 25. Rae1 {[%emt 0:01:28]} Qc5+ {[%emt 0:00:11]} 26. Ne3 {[%emt 0:02:34]} Re8 {[%emt 0:00:19]} 27. Rf2 {[%emt 0:00:52]} Nxe3 {[%emt 0:00:19]} 28. Qxe3 {[%emt 0:00:22]} Qd5 {[%emt 0:00:16]} 29. Qe4 {[%emt 0:01:14]} Qd3 {[%emt 0:00:25]} 30. Re3 {[%emt 0:01:27]} Qd1+ {[%emt 0:00:15]} 31. Rf1 {[%emt 0:00:16]} Qd2 {[%emt 0:00:19]} 32. Qxc4+ {[%emt 0:00:18]} Kh8 {[%emt 0:00:46]} 33. Ref3 {[%emt 0:01:05]} Qd8 {[%emt 0:00:48]} 34. Rf6 {[%emt 0:01:08]} Kh7 {[%emt 0:00:19]} 35. Qe4+ {[%emt 0:01:46]} Kg8 {[%emt 0:00:26]} 36. Rh6 {[%emt 0:00:14]} 1-0